Cogmind - Beta 16.1 @@@ ROGUE MODE // 2026.04.04 @ 03:18:17 Player: Foongus0298 Result: Destroyed by H-71 Marshal with Heavy Mass Driver Performance ------------- Evolutions (6) 3000 Regions Visited (17) 3400 Robots Destroyed (100) 500 Value Destroyed (3863) 3863 Prototype IDs (43) 860 Alien Tech Used (0) 0 Bonus (2732) 2732 TOTAL SCORE: 14355 Bonus ------- High Alert Combat Kills 110 Follower Combat Kills 1722 Aligned with FarCom 300 Built Enhanced Grunts 300 A7 Reached Mainframe 300 Cogmind --------- Core Integrity 0/1150 Matter 272/300 Energy 100/100 System Corruption 23% Temperature Cool (0) Movement Core (50) Location -4/Factory Parts ------- > --- POWER (2) -------- (None) > --- PROPULSION (5) --- (None) > --- UTILITY (9) ------ (None) > --- WEAPON (3) ------- (None) > --- INVENTORY (5) ---- Flexi-carbon Leg Flexi-carbon Leg Advanced Energy Well (500) Advanced Matter Compressor (294) Peak State ------------ > --- POWER ------------ Light Antimatter Reactor Reinforced Antimatter Reactor > --- PROPULSION ------- Myomer Leg Myomer Leg Myomer Leg Myomer Leg Myomer Leg > --- UTILITY ---------- Advanced Heat Sink Advanced Heat Sink Advanced Heat Sink Medium Storage Unit Signal Interpreter Centrium Medium Armor Plating Hacking Suite Hacking Suite System Shield > --- WEAPON ----------- Matter Neutralizer Matter Neutralizer Matter Neutralizer > --- INVENTORY -------- Fusion Reactor Light Antimatter Reactor Flexi-carbon Leg Flexi-carbon Leg Flexi-carbon Leg Advanced Power Amplifier Advanced Energy Well Advanced Matter Compressor Core Analyzer Centrium Medium Armor Plating [Rating: 111] Favorites ----------- Power Micro Nuclear Core Engine Light Deuterium Engine Power Core Micro Nuclear Core Reactor Quantum Reactor Propulsion Airjet Treads Light Treads Leg Improved Titanium Leg Hover Unit Airjet Flight Unit Flight Unit Utility Hacking Suite Device Advanced Heat Sink Storage Small Storage Unit Processor Signal Interpreter Hackware Hacking Suite Protection Centrium Medium Armor Plating Weapon Advanced Variable Charge Gun Energy Gun Advanced Variable Charge Gun Energy Cannon Cooled Particle Cannon Ballistic Gun Hypervelocity Gauss Rifle Ballistic Cannon Bore Cannon Launcher Grenade Launcher Special Weapon Improved Plasma Cutter Impact Weapon Mace Slashing Weapon Phasing Sabre Special Melee Weapon Improved Datajack Build | -11 -10 -10 -10 -9 -8 -7 -7 -7 -7 -7 -6 -6 -6 -6 -6 -5 -4 ------- Run | Yrd Mat Min Exi Min Mat Fac Was Fac Low Low Fac Ext Cet Arc Hub Fac Fac Slots Evolved 12 | . . . . . 4 2 . . . . 2 . . . . 2 2 Power 1 | . . . . . . 1 . . . . . . . . . . . Propulsion 3 | . . . . . 2 . . . . . 1 . . . . . . Utility 7 | . . . . . 2 1 . . . . . . . . . 2 2 Weapon 1 | . . . . . . . . . . . 1 . . . . . . Parts Attached 122 | 5 3 8 . . 12 17 1 . 1 3 2 15 4 2 10 10 29 Power 19 | . 1 . . . 1 3 . . . 1 . 4 1 1 1 2 4 Engine 4 | . 1 . . . 1 2 . . . . . . . . . . . Core 9 | . . . . . . 1 . . . 1 . 4 . 1 . . 2 Reactor 6 | . . . . . . . . . . . . . 1 . 1 2 2 Propulsion 39 | 2 . 5 . . 6 5 . . . 1 . 9 . . 1 1 9 Treads 7 | 2 . . . . . . . . . . . 4 . . . . 1 Leg 14 | . . . . . . . . . . . . 5 . . 1 1 7 Wheel . | . . . . . . . . . . . . . . . . . . Hover 6 | . . . . . . 5 . . . 1 . . . . . . . Flight 12 | . . 5 . . 6 . . . . . . . . . . . 1 Utility 26 | 1 1 . . . 1 5 1 . . . . . 2 . 3 4 8 Device 10 | . . . . . 1 1 . . . . . . 1 . 1 2 4 Storage 5 | 1 . . . . . . . . . . . . 1 . 2 . 1 Processor 3 | . 1 . . . . 2 . . . . . . . . . . . Hackware 5 | . . . . . . 2 1 . . . . . . . . . 2 Protection 3 | . . . . . . . . . . . . . . . . 2 1 Artifact . | . . . . . . . . . . . . . . . . . . Weapon 38 | 2 1 3 . . 4 4 . . 1 1 2 2 1 1 5 3 8 Energy Gun 11 | 2 . 1 . . . . . . . . . . 1 . 2 2 3 Energy Cannon 8 | . . . . . . . . . . . 1 . . . 3 . 4 Ballistic Gun 8 | . . 2 . . 1 2 . . . . 1 . . 1 . 1 . Ballistic Cannon 4 | . . . . . 2 1 . . . . . 1 . . . . . Launcher 1 | . 1 . . . . . . . . . . . . . . . . Special Weapon 1 | . . . . . . . . . . . . . . . . . 1 Impact Weapon 1 | . . . . . . 1 . . . . . . . . . . . Slashing Weapon 3 | . . . . . . . . . 1 1 . 1 . . . . . Piercing Weapon . | . . . . . . . . . . . . . . . . . . Special Melee Weapon 1 | . . . . . 1 . . . . . . . . . . . . Unidentified Prototypes 15 | . . . . . . 2 . . . . . . 1 . 7 3 2 Corrupted Parts 1 | . . . . . . . . . . . . . . . . . 1 System Corruption 9 | . . . . . . . . . . . . . . . . . 9 Parts Lost 55 | . 1 2 . . 1 2 . . 1 . . 4 . . 2 8 34 Power 10 | . . 1 . . . 1 . . . . . 2 . . . . 6 Propulsion 17 | . . 1 . . 1 1 . . 1 . . 2 . . . 3 8 Utility 12 | . . . . . . . . . . . . . . . . 2 10 Weapon 16 | . 1 . . . . . . . . . . . . . 2 3 10 Highest Loss Streak 26 | . 1 1 . . 1 1 . . 1 . . 2 . . 2 5 26 To Critical Strikes 1 | . . . . . . . . . . . . . . . . . 1 Average Backups 7 | 2 6 6 8 7 6 7 8 8 7 6 5 7 7 8 9 8 8 Power 1 | . 2 2 2 2 1 1 2 2 2 1 1 1 2 2 1 1 1 Propulsion . | 1 2 2 2 2 1 1 1 1 1 . . . . . . . 1 Utility 3 | . . 1 1 . 1 3 3 3 3 3 3 3 4 5 6 4 4 Weapon 1 | . 1 1 2 2 2 1 2 2 1 2 1 2 1 1 1 2 . Tool/Special . | . . . . . . . . . . . . . . . . . . Unused Backups 27 | . 3 4 1 1 2 7 . . . . . 1 2 . 1 1 4 Power 5 | . . . . . . 2 . . . . . 1 . . 1 1 . Propulsion 7 | . 2 3 . . 1 . . . . . . . . . . . 1 Utility 10 | . . . 1 1 . 3 . . . . . . 2 . . . 3 Weapon 3 | . 1 1 . . . 1 . . . . . . . . . . . Tool/Special 2 | . . . . . 1 1 . . . . . . . . . . . Average Slot Usage (%) 94 | . 89 82 85 85 79 97 100 98 99 99 93 96 100 100 99 97 86 Engine 2 | . 11 . . . 6 7 7 5 6 . . . . . . . . Core 4 | . . . . . . 6 7 7 7 14 13 12 7 6 1 . 1 Reactor 3 | . . . . . . . . . . . . . 4 6 11 11 7 Treads 3 | . 28 12 . . . . . . . . . 12 . . . . . Leg 12 | . . . . . . . . . . . . 8 33 33 33 26 19 Hover 10 | . . . . . . 29 30 30 29 30 26 9 . . . . . Flight 1 | . . 13 28 28 30 . . . . . . . . . . . . Device 4 | . . . . . 5 1 . . . . . . 4 6 5 10 11 Storage 6 | . 14 14 14 14 9 7 7 7 7 7 6 6 6 6 6 5 4 Processor 10 | . 7 14 14 14 9 16 15 15 15 15 13 13 7 6 6 5 4 Hackware 10 | . . . . . . 10 15 15 15 15 13 13 13 13 13 10 11 Protection 2 | . . . . . . . . . . . . . . . . 5 9 Energy Gun 3 | . 23 12 . . . . . . . . . . 4 6 6 6 1 Energy Cannon 2 | . . . . . . . . . . . . . 6 6 5 4 8 Ballistic Gun 6 | . . 14 28 28 14 9 15 15 6 7 6 6 1 5 5 4 . Ballistic Cannon 1 | . . . . . 1 3 . . . . 5 6 6 . . . . Slashing Weapon 1 | . . . . . . . . . 5 7 6 6 . . . . . Peak Build Rating 111 | 5 7 7 8 8 20 42 45 45 45 43 48 63 72 73 85 95 111 Average Rating 58 | 3 6 6 7 8 11 39 43 43 43 42 47 52 69 72 77 89 92 On Entrance 37 | . 5 7 7 8 8 20 42 45 45 38 43 48 63 72 73 78 76 Avg Prop Armor Cover (%) 4 | . . . . . . . . . . . . 4 . . . . 3 Naked Turns 21 | . . . . . . . . . . . . . . . . . 21 Heaviest Build 87 | 9 15 10 7 7 18 30 26 26 26 25 34 51 61 61 64 75 87 Greatest Support 125 | 40 40 40 8 8 22 38 32 32 32 32 36 95 95 95 108 108 125 Greatest Overweight (x) 4 | . . 1 . . . 2 . . . . 1 2 . . . 1 4 Average Overweight (x) . | . . . . . . . . . . . . . . . . . . Largest Inventory Capacity 10 | 8 8 8 8 8 8 8 8 8 8 8 8 8 8 8 10 10 10 Average Capacity 8 | 6 8 8 8 8 8 8 8 8 8 8 8 8 7 8 9 10 9 Most Carried 10 | 7 8 8 8 8 8 8 8 8 8 7 6 8 8 8 10 10 10 Average Carried 7 | 2 6 7 8 7 6 7 8 8 7 6 5 7 7 8 9 8 8 Final Capacity 10 | 8 8 8 8 8 8 8 8 8 8 8 8 8 8 8 10 10 5 Final Carried 9 | 7 6 8 8 8 8 8 8 8 8 6 6 8 8 8 9 7 4 Class Distribution -------------------- 34% | Hacker-Mutant 22% | Scavenger-Skirmisher 14% | Mutant 13% | Scavenger-Mutant 8% | Commander-Skirmisher Dominant Class ---------------- Mutant | -10/Materials Scavenger-Mutant | -10/Mines Scavenger-Mutant | -10/Exiles Scavenger-Mutant | -9/Mines Scavenger-Sprinter | -8/Materials Hacker-Mutant | -7/Factory Hacker-Mutant | -7/Waste Hacker-Mutant | -7/Factory Hacker-Mutant | -7/Lower Caves Hacker-Mutant | -7/Lower Caves Hacker-Mutant | -6/Factory Hacker-Mutant | -6/Extension Commander-Skirmisher | -6/Cetus Commander-Skirmisher | -6/Archives Scavenger-Skirmisher | -6/Hub_04(d) Scavenger-Skirmisher | -5/Factory Scavenger-Mutant | -4/Factory Resources | -11 -10 -10 -10 -9 -8 -7 -7 -7 -7 -7 -6 -6 -6 -6 -6 -5 -4 ----------- Run | Yrd Mat Min Exi Min Mat Fac Was Fac Low Low Fac Ext Cet Arc Hub Fac Fac Matter Collected 3100 | 234 121 65 . 25 37 800 . . 82 46 . 392 147 41 230 218 662 Remotely . | . . . . . . . . . . . . . . . . . . Salvage Created 4218 | . 200 330 . . 57 526 . . . 58 . 506 63 104 611 951 812 Parts 193 | . 9 20 . . 5 19 . . . 2 . 23 5 8 26 32 44 Haulers Intercepted 3 | . . . . . . . . . . . . . . . 2 1 . Recyclers Shooed 4 | . . 2 . . . . . . . . . . . . . 1 1 Parts Field Recycled . | . . . . . . . . . . . . . . . . . . Retrieved Matter . | . . . . . . . . . . . . . . . . . . Parts Self-Destructed 3 | . . . . . . . . . . 3 . . . . . . . Prevented . | . . . . . . . . . . . . . . . . . . Parts Restored . | . . . . . . . . . . . . . . . . . . Kills | -11 -10 -10 -10 -9 -8 -7 -7 -7 -7 -7 -6 -6 -6 -6 -6 -5 -4 ------- Run | Yrd Mat Min Exi Min Mat Fac Was Fac Low Low Fac Ext Cet Arc Hub Fac Fac Combat Hostiles Destroyed 68 | . 5 8 . . 4 6 . . . 2 . 7 1 1 8 12 14 Melee 8 | . . . . . . 2 . . . 2 . 4 . . . . . Guns 26 | . 3 8 . . 3 1 . . . . . 1 . . 3 7 . Cannons 23 | . . . . . 1 1 . . . . . 2 1 1 4 3 10 AOE 5 | . 1 . . . . . . . . . . . . . 1 . 3 Classes Destroyed 17 | . 2 2 . . 1 4 . . . . . 2 . . 4 1 1 Worker 8 | . . . . . . 5 . . . . . . . . . 2 1 Builder 6 | . 1 . . . . . . . . . . 1 . . 1 2 1 Hauler 3 | . . . . . . . . . . . . . . . 2 1 . Recycler 7 | . . 2 . . . 2 . . . . . . . . . 3 . Mechanic 1 | . . . . . . . . . . . . 1 . . . . . Operator 4 | . . . . . . 2 . . . . . . . 1 1 . . Watcher 2 | . . . . . . 1 . . . . . 1 . . . . . Swarmer 18 | . . 6 . . 3 . . . . 2 . . . . 2 5 . Cutter 1 | . . . . . 1 . . . . . . . . . . . . Grunt 20 | . 5 2 . . . 4 . . . . . 1 . . 3 2 3 Brawler 1 | . . . . . . . . . . . . . . . . 1 . Duelist 1 | . . . . . . . . . . . . . . . . 1 . Sentry 6 | . . . . . . . . . . . . 5 . 1 . . . Specialist 2 | . . . . . . . . . . . . . . . . . 2 Hunter 4 | . . . . . . . . . . . . . . . 1 1 2 Programmer 12 | . . . . . . 2 . . . . . . . . 1 2 7 Heavy 1 | . . . . . . . . . . . . . . . 1 . . Cetus Guard 1 | . . . . . . . . . . . . . 1 . . . . Thug 1 | . . . . . . . . . . . . 1 . . . . . Savage 1 | . . . . . . . . . . . . . . . 1 . . Best Kill Streak 7 | . 2 5 . . 3 3 . . . 2 . 3 1 2 4 7 4 Combat Bots Only 5 | . 2 3 . . 3 2 . . . 2 . 1 1 1 3 5 4 Max Kills in Single Turn 6 | . 1 2 . . 1 1 . . . 1 . 1 1 2 3 6 3 Gunslinging 1 | . . 1 . . . . . . . . . . . . . . . Exploded 2 | . 1 . . . . . . . . . . . . . 1 . 2 Melee 1 | . . . . . . 1 . . . 1 . 1 . . . . . Uniques/NPCs Destroyed . | . . . . . . . . . . . . . . . . . . Combat | -11 -10 -10 -10 -9 -8 -7 -7 -7 -7 -7 -6 -6 -6 -6 -6 -5 -4 -------- Run | Yrd Mat Min Exi Min Mat Fac Was Fac Low Low Fac Ext Cet Arc Hub Fac Fac Hostile Shots Fired 911 | . 46 41 . . 49 37 1 . 8 25 3 149 12 2 94 106 338 Missed 336 | . 16 10 . . 17 9 1 . 4 14 2 69 6 . 33 33 122 Hits 575 | . 30 31 . . 32 28 . . 4 11 1 80 6 2 61 73 216 Melee 10 | . . . . . . . . . 1 . . . . . . 9 . Projectile 565 | . 30 31 . . 32 28 . . 3 11 1 80 6 2 61 64 216 AOE 3 | . . . . . 1 . . . . . . . . . . . 2 Critical Strikes 18 | . . . . . 1 1 . . 1 . . . 2 . . 1 12 Part Disruptions 3 | . . . . . . . . . . . . . . . . . 3 Damage Taken 9749 | . 442 302 . . 332 495 . . 48 119 19 566 102 45 899 1740 4640 Core 1773 | . 65 128 . . 94 88 . . . 16 . 59 . 21 38 99 1165 Absorbed by Shields 159 | . . . . . . . . . . . . 108 51 . . . . Regen/Repaired (Parts) 390 | . . . . . . 111 . 36 . . . 124 . . . 119 . Core Remaining (%) 77 | 100 . . . 22 82 . . . . 85 . . . . 86 90 . Volleys Fired 228 | . 21 24 . . 10 30 . . . 2 . 20 9 3 25 35 49 Largest 3 | . 2 2 . . 2 2 . . . 1 . 2 3 2 3 3 3 Hottest 315 | . 100 115 . . 62 81 . . . 33 . 78 160 128 203 173 315 Shots Fired 489 | . 40 48 . . 20 56 . . 1 2 . 34 24 6 65 96 97 Gun 289 | . 35 48 . . 18 39 . . 1 2 . 14 8 . 43 72 9 Cannon 187 | . . . . . 2 17 . . . . . 20 16 6 22 24 80 Launcher 5 | . 5 . . . . . . . . . . . . . . . . Special 8 | . . . . . . . . . . . . . . . . . 8 Kinetic 185 | . . 10 . . 20 56 . . 1 2 . 34 14 3 19 26 . Thermal 263 | . 35 38 . . . . . . . . . . 10 3 46 47 84 Explosive 5 | . 5 . . . . . . . . . . . . . . . . Electromagnetic 36 | . . . . . . . . . . . . . . . . 23 13 Robot Hit Streak 20 | . 5 6 . . 8 11 . . . 4 . 7 8 3 4 20 9 Robot Miss Streak 7 | . 2 5 . . 7 6 . . . 1 . 4 4 1 5 3 7 Penetration Max 1 | . . . . . . 1 . . . . . 1 1 . 1 1 . Secondary Targets 3 | . 1 1 . . . . . . . . . . . . . 1 . Max Gunslinging Chain 1 | . 1 1 . . . . . . . . . . . . . 1 . Shots Hit Robots 321 | . 24 27 . . 15 50 . . . 3 . 30 13 4 32 68 55 Core Hits 145 | . 12 15 . . 7 14 . . . 2 . 15 3 4 20 28 25 Critical Kills 6 | . . . . . . 1 . . . . . 1 1 1 . 1 1 Critical Parts Destroyed 10 | . . . . . . 5 . . . . . 3 2 . . . . Critical Strikes 28 | . 1 3 . . . 7 . . . . . 8 4 1 . 1 3 Burn 4 | . 1 3 . . . . . . . . . . . . . . . Meltdown 2 | . . . . . . . . . . . . . . . . 1 1 Destroy 12 | . . . . . . 3 . . . . . 4 4 1 . . . Blast 1 | . . . . . . 1 . . . . . . . . . . . Corrupt 1 | . . . . . . . . . . . . . . . . . 1 Smash 3 | . . . . . . 3 . . . . . . . . . . . Sever 5 | . . . . . . . . . . . . 4 . . . . 1 Melee Attacks 51 | . . . . . . 18 . . 2 3 3 25 . . . . . Impact 20 | . . . . . . 18 . . 2 . . . . . . . . Slashing 31 | . . . . . . . . . . 3 3 25 . . . . . Piercing . | . . . . . . . . . . . . . . . . . . Sneak Attacks 8 | . . . . . . 4 . . . . . 4 . . . . . Combat Hostiles 1 | . . . . . . 1 . . . . . . . . . . . Follow-up Attacks . | . . . . . . . . . . . . . . . . . . Damage Inflicted 11240 | . 415 346 . . 140 1318 . . . 94 . 1084 359 117 1454 3207 2706 Guns 3877 | . 274 346 . . 128 408 . . . 6 . 269 152 . 788 1439 67 Cannons 3767 | . . . . . 12 203 . . . . . 170 207 117 482 537 2039 Explosions 1973 | . 141 . . . . . . . . . . . . . 176 1215 441 Melee 1347 | . . . . . . 614 . . . 88 . 645 . . . . . Ramming 186 | . . . . . . 93 . . . . . . . . 8 16 69 Kinetic 2283 | . . 58 . . 140 611 . . . 6 . 439 206 40 321 462 . Thermal 6560 | . 274 288 . . . . . . . . . . 153 77 1125 2368 2275 Explosive 367 | . 141 . . . . . . . . . . . . . . . 226 Electromagnetic 497 | . . . . . . . . . . . . . . . . 361 136 Impact 614 | . . . . . . 614 . . . . . . . . . . . Slashing 733 | . . . . . . . . . . 88 . 645 . . . . . Piercing . | . . . . . . . . . . . . . . . . . . Highest Corruption 23 | . . . . . . 4 4 4 4 4 . . . . . 15 23 Average Corruption 4 | . . . . . . 3 4 4 4 4 . . . . . 2 6 Corruption Purged 4 | . . . . . . 4 . . . . . . . . . . . Corruption Blocked . | . . . . . . . . . . . . . . . . . . Effects 86 | . . . . . . 23 2 3 8 4 . . . . . 8 38 Message Errors 13 | . . . . . . 4 1 1 . 1 . . . . . . 6 Matter Fused 33 | . . . . . . 8 1 1 2 2 . . . . . 2 17 Heat Flow Errors 12 | . . . . . . 3 . . 2 . . . . . . 2 5 Energy Discharges 6 | . . . . . . . . . 1 1 . . . . . 2 2 Data Loss (minor) 12 | . . . . . . 3 . . 2 . . . . . . 1 6 Data Loss (major) 4 | . . . . . . 1 . 1 . . . . . . . 1 1 Misfires 5 | . . . . . . 4 . . 1 . . . . . . . . Misdirections 1 | . . . . . . . . . . . . . . . . . 1 Overload Shots 17 | . . . . . . . . . . . . . . . . . 17 Effects 2 | . . . . . . . . . . . . . . . . . 2 Heat Surge 2 | . . . . . . . . . . . . . . . . . 2 Overflow Damage 821 | . . . . . . 220 . . . . . 9 . . 13 368 211 Projectiles 162 | . . . . . . 5 . . . . . . . . 13 . 144 Explosions 435 | . . . . . . . . . . . . . . . . 368 67 Melee 224 | . . . . . . 215 . . . . . 9 . . . . . Knockbacks 12 | . . . . . . 10 . . . . . 1 . . . . 1 Impact 4 | . . . . . . 3 . . . . . . . . . . 1 Kinetic 8 | . . . . . . 7 . . . . . 1 . . . . . Secondary . | . . . . . . . . . . . . . . . . . . Self-Inflicted Damage 372 | . 90 . . . . 46 . . . . . . . . 64 76 96 Shots 8 | . 4 . . . . . . . . . . . . . 1 2 1 Rammed 4 | . . 1 . . . 3 . . . . . . . . . . . Targets Rammed 12 | . . 1 . . . 3 . . . . . . . . 2 2 4 Kicked 8 | . . . . . . . . . . . . . . . 2 2 4 Crushed . | . . . . . . . . . . . . . . . . . . Highest Temperature 457 | . 288 308 . . 26 242 . . 160 10 . 51 457 24 320 190 328 Average Temperature 92 | . 83 124 . . 13 63 . . 60 4 . 25 219 12 125 52 99 Received Heat Transfer 1092 | . 192 87 . . 27 72 . . . 24 9 159 . . 183 129 210 Effects 10 | . . . . . . . . . . . . . 6 . 4 . . Shutdowns 3 | . . . . . . . . . . . . . 3 . . . . Energy Bleed 1 | . . . . . . . . . . . . . . . 1 . . Interference 5 | . . . . . . . . . . . . . 3 . 2 . . Matter Decay 1 | . . . . . . . . . . . . . . . 1 . . Siege Activations . | . . . . . . . . . . . . . . . . . . Martial Activations . | . . . . . . . . . . . . . . . . . . Shielding Activations . | . . . . . . . . . . . . . . . . . . Robots Disrupted . | . . . . . . . . . . . . . . . . . . Combat Hostiles . | . . . . . . . . . . . . . . . . . . Robots Corrupted 4 | . . . . . . 3 . . . . . . . . . 1 . Combat Hostiles 3 | . . . . . . 2 . . . . . . . . . 1 . Parts Fried 9 | . . . . . . 8 . . . . . 1 . . . . . Impact Corruptions 9 | . . . . . . 9 . . . . . . . . . . . Robots Melted 3 | . 1 . . . . . . . . . . . . . . 1 1 Combat Hostiles 3 | . 1 . . . . . . . . . . . . . . 1 1 Parts Melted 20 | . 2 2 . . . . . . . . . 1 . . 2 5 8 Heat Transferred 7544 | . 888 1036 . . . . . . . . . . 300 150 805 2183 2182 Parts Sabotaged . | . . . . . . . . . . . . . . . . . . Parts Stolen 1 | . . . . . . . . . 1 . . . . . . . . Parts Stripped . | . . . . . . . . . . . . . . . . . . Power Chain Reactions 2 | . . . . . . . . . . . . . . . 1 . 1 Alert | -11 -10 -10 -10 -9 -8 -7 -7 -7 -7 -7 -6 -6 -6 -6 -6 -5 -4 ------- Run | Yrd Mat Min Exi Min Mat Fac Was Fac Low Low Fac Ext Cet Arc Hub Fac Fac Maximum Alert Level 3 | . . . . . . . . . . . . 1 1 1 3 2 1 Low Security (%) 81 | 100 100 100 . 100 100 100 100 100 . . 100 83 30 91 19 53 99 Level 1 15 | . . . . . . . . . . . . 16 69 8 56 32 . Level 2 3 | . . . . . . . . . . . . . . . 17 13 . Level 3 . | . . . . . . . . . . . . . . . 6 . . Level 4 . | . . . . . . . . . . . . . . . . . . Level 5 . | . . . . . . . . . . . . . . . . . . High Security . | . . . . . . . . . . . . . . . . . . Max Security . | . . . . . . . . . . . . . . . . . . Peak Influence 754 | . 119 132 . . 147 127 11 6 . . 12 336 312 216 754 428 220 Initial 345 | . . 22 . . . 53 11 . . . 12 . 172 61 19 345 184 Average 111 | . 64 73 . . 79 47 4 . . . 2 84 231 133 330 211 61 Influence Increases 4865 | . 227 230 . . 198 434 . 6 . 115 18 833 192 185 1134 652 641 Destroy 0b10 Robot/C 2180 | . 100 160 . . 160 120 . . . 40 . 460 80 80 460 240 280 Destroy 0b10 Robot/NC 180 | . 5 10 . . . 50 . . . . . 15 5 5 40 40 10 Destroy Leader 404 | . 20 30 . . 30 42 . . . . . 52 . . 118 42 70 Allied During Kill 719 | . . . . . 7 . . . . . . 181 85 85 361 . . Successful Hack 304 | . 18 . . . . 116 . 6 . . 15 81 12 . 22 13 21 Disable Machine 465 | . 30 15 . . . 15 . . . . . 15 . 15 75 225 75 Destroy Structure 298 | . 24 . . . 1 1 . . . . 3 14 10 . 43 92 110 Partial Spotted 60 | . . 15 . . . . . . . . . . . . 15 . 30 Lose Combat Pursuer 255 | . 30 . . . . 90 . . . 75 . 15 . . . . 45 Influence Decreases 4854 | . 170 195 92 . 80 518 34 6 . 95 37 526 346 283 483 981 1008 Entered New Map 1046 | . . 35 92 . . 65 23 . . . 8 1 136 93 37 362 194 Time Decay 2940 | . 160 140 . . 50 443 11 6 . 95 29 422 190 170 206 539 479 Lost Part 518 | . 10 20 . . 10 10 . . . . . 33 . . 20 80 335 Lost Ally 350 | . . . . . 20 . . . . . . 70 20 20 220 . . Squads Dispatched 40 | . 1 . . . 2 13 . 1 . . . 2 . . 7 6 8 Investigation 10 | . 1 . . . . 2 . 1 . . . 2 . . 1 1 2 Extermination 10 | . . . . . . 5 . . . . . . . . 1 2 2 Reinforcement 15 | . . . . . 2 3 . . . . . . . . 5 1 4 Assault 2 | . . . . . . . . . . . . . . . . 2 . Garrison 3 | . . . . . . 3 . . . . . . . . . . . Intercept . | . . . . . . . . . . . . . . . . . . Searches Triggered . | . . . . . . . . . . . . . . . . . . Construction Impeded 5 | . . . . . . 1 . . . . . . . . 2 . 2 Haulers Reinforced 1 | . . . . . . . . . . . . . . . . 1 . Active Scanning Responses . | . . . . . . . . . . . . . . . . . . Cargo Convoy Interrupts . | . . . . . . . . . . . . . . . . . . Stealth | -11 -10 -10 -10 -9 -8 -7 -7 -7 -7 -7 -6 -6 -6 -6 -6 -5 -4 --------- Run | Yrd Mat Min Exi Min Mat Fac Was Fac Low Low Fac Ext Cet Arc Hub Fac Fac Distress Signals 10 | . 4 . . . 1 . . . . . . 2 1 . . . 2 Communications Jammed . | . . . . . . . . . . . . . . . . . . Distress Signals . | . . . . . . . . . . . . . . . . . . Times Spotted 183 | . 15 8 . . 18 19 5 . 2 5 3 26 4 3 28 19 28 Peak Tracking Total 11 | . 5 3 . . 9 3 5 . 1 4 3 5 5 1 6 5 11 Tactical Retreats 11 | . 1 . . . . 4 . . . 2 . 1 . . . . 3 Traps | -11 -10 -10 -10 -9 -8 -7 -7 -7 -7 -7 -6 -6 -6 -6 -6 -5 -4 ------- Run | Yrd Mat Min Exi Min Mat Fac Was Fac Low Low Fac Ext Cet Arc Hub Fac Fac Traps Triggered 7 | . . . . . . 3 . . . . 1 1 . . . 1 1 Indirectly . | . . . . . . . . . . . . . . . . . . Trap Hack Attempts . | . . . . . . . . . . . . . . . . . . Triggered . | . . . . . . . . . . . . . . . . . . Disarmed 3 | . . . . . . . . . . . . 3 . . . . . Reprogrammed . | . . . . . . . . . . . . . . . . . . Reused . | . . . . . . . . . . . . . . . . . . Traps Extracted . | . . . . . . . . . . . . . . . . . . Installed . | . . . . . . . . . . . . . . . . . . Triggered . | . . . . . . . . . . . . . . . . . . Machines | -11 -10 -10 -10 -9 -8 -7 -7 -7 -7 -7 -6 -6 -6 -6 -6 -5 -4 ---------- Run | Yrd Mat Min Exi Min Mat Fac Was Fac Low Low Fac Ext Cet Arc Hub Fac Fac Machines Disabled 31 | . 2 1 . . . 1 . . . . . 1 . 1 5 15 5 Max in Single Turn 14 | . 1 1 . . . 1 . . . . . . . . 1 14 3 Garrison Access 1 | . . . . . . . . . . . . . . . . . 1 Machines Repaired . | . . . . . . . . . . . . . . . . . . Machines Dismantled . | . . . . . . . . . . . . . . . . . . Machines Sabotaged . | . . . . . . . . . . . . . . . . . . Overloaded Fab Kills . | . . . . . . . . . . . . . . . . . . Hacking | -11 -10 -10 -10 -9 -8 -7 -7 -7 -7 -7 -6 -6 -6 -6 -6 -5 -4 --------- Run | Yrd Mat Min Exi Min Mat Fac Was Fac Low Low Fac Ext Cet Arc Hub Fac Fac Machines Accessed 55 | . 3 . 1 . . 16 . 2 . . 5 13 2 1 1 5 6 Terminals 30 | . 2 . . . . 5 . 1 . . 3 12 2 . 1 2 2 Fabricators 4 | . . . . . . 3 . . . . . . . . . . 1 Repair Stations 7 | . . . . . . 4 . 1 . . . 1 . . . 1 . Recycling Units 9 | . 1 . . . . 4 . . . . 1 . . . . 2 1 Scanalyzers 2 | . . . . . . . . . . . 1 . . . . . 1 Garrison Access 1 | . . . . . . . . . . . . . . . . . 1 Total Hacks 172 | . 8 . 1 . . 39 . 8 . . 22 31 5 25 5 15 13 Successful 116 | . 3 . 1 . . 22 . 3 . . 18 19 3 25 2 14 6 Failed 55 | . 5 . . . . 17 . 5 . . 4 12 2 . 3 1 6 Catastrophic 6 | . 1 . . . . 1 . . . . . 1 . . 1 . 2 Database Lockouts 1 | . . . . . . . . . . . . . . . . . 1 Manual 20 | . 5 . 1 . . 2 . . . . 5 2 2 1 . 2 . Terminals 75 | . 5 . . . . 11 . 2 . . 10 27 5 . 5 5 5 Fabricators 7 | . . . . . . 4 . . . . . . . . . . 3 Repair Stations 26 | . . . . . . 12 . 6 . . . 4 . . . 4 . Recycling Units 25 | . 3 . . . . 12 . . . . 2 . . . . 6 2 Scanalyzers 12 | . . . . . . . . . . . 10 . . . . . 2 Garrison Access 1 | . . . . . . . . . . . . . . . . . 1 Terminal Hacks 67 | . 2 . 1 . . 5 . . . . 6 16 3 25 2 5 2 Record 27 | . . . . . . . . . . . . . 2 25 . . . Part Schematic 1 | . . . . . . . . . . . . 1 . . . . . Robot Analysis 3 | . . . . . . 2 . . . . . 1 . . . . . Prototype ID Bank 2 | . . . . . . . . . . . . 1 . . 1 . . Open Door 6 | . . . . . . . . . . . 1 4 1 . . . . Open DSF 3 | . . . . . . 1 . . . . 1 . . . . 1 . Level Access Points 2 | . . . . . . . . . . . . . . . 1 1 . Branch Access Points 6 | . 1 . . . . 1 . . . . 1 1 . . . 1 1 Emergency Access Points 2 | . . . . . . . . . . . 1 . . . . 1 . Repair Station Index 1 | . . . . . . 1 . . . . . . . . . . . Recycling Unit Index 1 | . . . . . . . . . . . . . . . . . 1 Alert Level 2 | . . . . . . . . . . . . 1 . . . 1 . Locate Traps 1 | . . . . . . . . . . . . 1 . . . . . Disarm Traps 1 | . . . . . . . . . . . . 1 . . . . . Dispatch Records 3 | . 1 . . . . . . . . . 1 1 . . . . . Maintenance Status 1 | . . . . . . . . . . . . 1 . . . . . Security Status 1 | . . . . . . . . . . . . 1 . . . . . Transport Status 1 | . . . . . . . . . . . 1 . . . . . . Zone Layout 2 | . . . . . . . . . . . . 2 . . . . . Proto ID Catalog 1 | . . . 1 . . . . . . . . . . . . . . Fabricator Hacks 4 | . . . . . . 2 . . . . . . . . . . 2 Network Status 1 | . . . . . . 1 . . . . . . . . . . . Load Schematic 1 | . . . . . . . . . . . . . . . . . 1 Build 2 | . . . . . . 1 . . . . . . . . . . 1 Repair Station Hacks 19 | . . . . . . 10 . 3 . . . 3 . . . 3 . Scan Component 11 | . . . . . . 5 . 2 . . . 2 . . . 2 . Repair 8 | . . . . . . 5 . 1 . . . 1 . . . 1 . Recycling Unit Hacks 12 | . . . . . . 5 . . . . 1 . . . . 6 . Process 2 | . . . . . . 1 . . . . . . . . . 1 . Report Inventory 5 | . . . . . . 2 . . . . 1 . . . . 2 . Retrieve Matter 3 | . . . . . . 2 . . . . . . . . . 1 . Retrieve Components 2 | . . . . . . . . . . . . . . . . 2 . Scanalyzer 11 | . . . . . . . . . . . 10 . . . . . 1 Insert Component 1 | . . . . . . . . . . . 1 . . . . . . Analyze 2 | . . . . . . . . . . . 2 . . . . . . Retrieve Study 8 | . . . . . . . . . . . 7 . . . . . 1 Garrison Access Hacks 1 | . . . . . . . . . . . . . . . . . 1 Seal Access 1 | . . . . . . . . . . . . . . . . . 1 Unauthorized Hacks 2 | . 1 . . . . . . . . . 1 . . . . . . Terminals . | . . . . . . . . . . . . . . . . . . Fabricators . | . . . . . . . . . . . . . . . . . . Repair Stations . | . . . . . . . . . . . . . . . . . . Recycling Units 2 | . 1 . . . . . . . . . 1 . . . . . . Reject 1 | . . . . . . . . . . . 1 . . . . . . Mask 1 | . 1 . . . . . . . . . . . . . . . . Scanalyzers . | . . . . . . . . . . . . . . . . . . Garrison Access . | . . . . . . . . . . . . . . . . . . Data Cores Recovered 1 | . . . . . . 1 . . . . . . . . . . . Used . | . . . . . . . . . . . . . . . . . . Hacking Detections 40 | . 2 . . . . 13 . 2 . . 3 10 2 . 1 3 4 Full Trace Events 10 | . 1 . . . . 2 . 1 . . . 2 . . 1 1 2 Feedback Events 1 | . . . . . . . . . . . . . . . . . 1 Corruption 1 | . . . . . . . . . . . . . . . . . 1 Feedback Blocked . | . . . . . . . . . . . . . . . . . . Robot Schematics Acquired . | . . . . . . . . . . . . . . . . . . Robots Built . | . . . . . . . . . . . . . . . . . . Authchips . | . . . . . . . . . . . . . . . . . . Time . | . . . . . . . . . . . . . . . . . . Total Robot Build Rating . | . . . . . . . . . . . . . . . . . . Part Schematics Acquired 2 | . . . . . . . . . . . 1 1 . . . . . Parts Built 4 | . . . . . . 2 . . . . . . . . . . 2 Authchips . | . . . . . . . . . . . . . . . . . . Time 153 | . . . . . . 47 . . . . . . . . . . 106 Total Part Build Rating 22 | . . . . . . 10 . . . . . . . . . . 12 Part Studies Acquired 8 | . . . . . . . . . . . 7 . . . . . 1 Parts Repaired 8 | . . . . . . 5 . 1 . . . 1 . . . 1 . Time 266 | . . . . . . 134 . 26 . . . 32 . . . 74 . Parts Recycled . | . . . . . . . . . . . . . . . . . . Recycled Matter 101 | . . . . . . 91 . . . . . . . . . 10 . Retrieved Matter 10 | . . . . . . . . . . . . . . . . 10 . Retrieved Components 1 | . . . . . . . . . . . . . . . . 1 . Parts Scanalyzed 1 | . . . . . . . . . . . 1 . . . . . . Part Schematics Acquired 1 | . . . . . . . . . . . 1 . . . . . . Parts Damaged . | . . . . . . . . . . . . . . . . . . Bothacking | -11 -10 -10 -10 -9 -8 -7 -7 -7 -7 -7 -6 -6 -6 -6 -6 -5 -4 ------------ Run | Yrd Mat Min Exi Min Mat Fac Was Fac Low Low Fac Ext Cet Arc Hub Fac Fac Used RIF Installer . | . . . . . . . . . . . . . . . . . . Robots Hacked . | . . . . . . . . . . . . . . . . . . Non-combat . | . . . . . . . . . . . . . . . . . . Combat . | . . . . . . . . . . . . . . . . . . Robot Hacks Applied . | . . . . . . . . . . . . . . . . . . Relay Couplers Released . | . . . . . . . . . . . . . . . . . . Fabnet Peak Effective % . | . . . . . . . . . . . . . . . . . . Robots Rewired 18 | . . . . . . . . . . . . 18 . . . . . Allies Hacked 1 | . . . . . . . . . . . . 1 . . . . . Hacks Repelled . | . . . . . . . . . . . . . . . . . . Allies | -11 -10 -10 -10 -9 -8 -7 -7 -7 -7 -7 -6 -6 -6 -6 -6 -5 -4 -------- Run | Yrd Mat Min Exi Min Mat Fac Was Fac Low Low Fac Ext Cet Arc Hub Fac Fac Total Allies 28 | . . . . 1 . . . . . . . 22 5 . . . . Largest Group 17 | . . . . 1 1 . . . . . . 14 17 16 15 . . Highest-Rated Group 968 | . . . . 31 31 . . . . . . 535 968 948 789 . . Highest-Rated Ally 159 | . . . . 31 31 . . . . . . 159 159 159 96 . . Total Orders 1 | . . . . . . . . . . . . . . . 1 . . AID 1 | . . . . . . . . . . . . . . . 1 . . Ally Attacks 257 | . . . . . 14 . . . . . . 96 21 13 113 . . Total Damage 6093 | . . . . . 210 . . . . . . 2331 436 275 2841 . . Kills 49 | . . . . . 4 . . . . . . 16 4 3 22 . . Allies Corrupted . | . . . . . . . . . . . . . . . . . . Allies Melted . | . . . . . . . . . . . . . . . . . . Intel | -11 -10 -10 -10 -9 -8 -7 -7 -7 -7 -7 -6 -6 -6 -6 -6 -5 -4 ------- Run | Yrd Mat Min Exi Min Mat Fac Was Fac Low Low Fac Ext Cet Arc Hub Fac Fac Active Infowar (turns) 320 | . . . . . . 320 . . . . . . . . . . . Optics 320 | . . . . . . 320 . . . . . . . . . . . Robot Analysis Total 3 | . . . . . . 2 . . . . . 1 . . . . . Derelict Logs Recovered 4 | . . . . 2 . . . . 1 1 . . . . . . . Drone Launches . | . . . . . . . . . . . . . . . . . . Drone Recoveries . | . . . . . . . . . . . . . . . . . . Exploration | -11 -10 -10 -10 -9 -8 -7 -7 -7 -7 -7 -6 -6 -6 -6 -6 -5 -4 ------------- Run | Yrd Mat Min Exi Min Mat Fac Was Fac Low Low Fac Ext Cet Arc Hub Fac Fac Turns Passed 9359 | 95 373 281 91 171 151 1669 54 77 407 345 187 1339 389 341 438 1590 1361 Spaces Moved 7970 | 54 182 346 241 230 241 2039 109 67 823 690 239 878 201 210 250 533 637 Core 56 | 4 . . . . . 1 . . . . . . . . . . 51 Treads 577 | 50 182 40 . . . . . . . . . 305 . . . . . Legs 1967 | . . . . . . . . . . . . 191 201 210 250 533 582 Wheels . | . . . . . . . . . . . . . . . . . . Hover 4336 | . . . . . . 2026 109 67 823 690 239 382 . . . . . Flight 1034 | . . 306 241 230 241 12 . . . . . . . . . . 4 Fastest Speed 21 | 50 160 37 37 37 21 28 48 48 48 48 48 48 128 128 128 126 40 Average Speed 77 | 151 160 51 37 37 32 48 48 48 48 48 73 111 128 128 128 137 137 Slowest Speed 400 | 160 160 160 37 37 37 150 48 48 52 48 108 270 128 128 128 195 400 Overloaded Moves 3 | . . . . . 3 . . . . . . . . . . . . Propulsion Burnouts . | . . . . . . . . . . . . . . . . . . Robots Hopped 4 | . . 1 . . 2 . . . . . . . . . . . 1 Potential Cave-ins 10 | . . . . . . . . . . . . 10 . . . . . Cave-ins Triggered 1 | . . . . . . . . . . . . . . . . . 1 Time Travels 1 | . . . . . 1 . . . . . . . . . . . . Exploration Rate (%) 47 | 4 34 77 61 68 28 56 76 2 80 78 9 61 72 97 22 13 15 Regions Visited 17 Branch Regions 9 Pre-discovered Areas 1 | . . . . 1 . . . . . . . . . . . . . Known Exits Taken 14 | . 1 1 1 1 1 . . 1 1 1 1 1 1 1 1 1 . Unknown Exits Taken 1 | 1 . . . . . . . . . . . . . . . . . Scrap Searched 18 | . . 1 . 2 . . . . 4 11 . . . . . . . Spaces Dug 14 | . . . . . . . . . . . 3 11 . . . . . Terrain Destroyed 169 | . 21 . . . . . . . . . 3 23 5 . 18 45 54 Melee 14 | . . . . . . . . . . . 3 11 . . . . . Projectile 52 | . . . . . . . . . . . . 12 5 . 11 5 19 AOE 103 | . 21 . . . . . . . . . . . . . 7 40 35 Terrain Rammed . | . . . . . . . . . . . . . . . . . . Walls Destroyed . | . . . . . . . . . . . . . . . . . . Machines Disabled . | . . . . . . . . . . . . . . . . . . Actions | -11 -10 -10 -10 -9 -8 -7 -7 -7 -7 -7 -6 -6 -6 -6 -6 -5 -4 --------- Run | Yrd Mat Min Exi Min Mat Fac Was Fac Low Low Fac Ext Cet Arc Hub Fac Fac Total 10582 | 65 223 402 242 315 294 2639 110 110 829 698 247 1166 314 277 313 1313 1025 Wait 1907 | . 9 9 . 84 18 486 . 43 . . . 132 87 61 5 713 260 Move 7946 | 53 181 343 240 229 236 2039 108 66 822 689 238 877 200 209 249 532 635 Hop 4 | . . 1 . . 2 . . . . . . . . . . . 1 Pick Up 81 | 7 3 6 1 1 7 16 . . 1 . . 4 5 . 7 8 15 Fast Attach 81 | 5 2 3 . . 2 17 1 1 1 1 1 15 2 1 8 5 16 Attach 38 | . 1 1 . . 5 3 . . 1 2 2 . . . 1 7 15 Detach 6 | . . . . . 1 . . . . . 2 . . . 1 2 . Swap 46 | . 3 4 . . 7 4 . . 1 . 1 2 4 1 3 3 13 Drop 103 | . 3 10 1 1 6 23 1 . 1 1 . 12 7 2 12 6 17 Fire 228 | . 21 24 . . 10 30 . . . 2 . 20 9 3 25 35 49 Melee 51 | . . . . . . 18 . . 2 3 3 25 . . . . . Ram 3 | . . . . . . 3 . . . . . . . . . . . Kick 8 | . . . . . . . . . . . . . . . 2 2 4 Crush 1 | . . 1 . . . . . . . . . . . . . . . Escape Stasis 2 | . . . . . . . . . . . . 2 . . . . . Rewire 77 | . . . . . . . . . . . . 77 . . . . . Trap . | . . . . . . . . . . . . . . . . . . Miscellaneous . | . . . . . . . . . . . . . . . . . . Route ------- -11/Scrapyard -10/Materials (discovered 2 exits: *Min x2) -10/Mines (discovered 3 exits: *Mat x2 / *Exi) -10/Exiles (discovered 2 exits: *Min x2) -9/Mines -8/Materials -7/Factory (discovered 2 exits: Low x2) -7/Waste -7/Factory -7/Lower Caves -7/Lower Caves -6/Factory (discovered 5 exits: *Fac / Low x2 / *Ext x2) -6/Extension (discovered 2 exits: *Fac / *Cet) -6/Cetus -6/Archives (discovered 3 exits: *Fac / *Hub x2) -6/Hub_04(d) (discovered 4 exits: *Fac x4) -5/Factory (discovered 6 exits: *Fac x4 / Upp x2) -4/Factory (discovered 2 exits: Upp x2) History --------- Turn | Location | Event 7 | -11/Scrapyard | Discovered new exit (range 14) 96 | -11/Scrapyard | Entered Materials 308 | -10/Materials | Build established: Mutant 402 | -10/Materials | Identified exit to Mines 469 | -10/Materials | Entered Mines 490 | -10/Mines | Core integrity fell below 50% 558 | -10/Mines | Discovered new exit (range 7) 620 | -10/Mines | Identified exit to Materials 622 | -10/Mines | Discovered exit to Materials (range 12) 721 | -10/Mines | A weapon hastily lodged in a ceiling crevice suddenly fell to the ground 749 | -10/Mines | Deemed a non-threat by the Exiles lab entrance 749 | -10/Mines | Discovered new exit (range 5) 750 | -10/Mines | Identified exit to Exiles 750 | -10/Mines | Entered Exiles 756 | -10/Exiles | Discovered new exit (range 15) 761 | -10/Exiles | Identified exit to Mines 769 | -10/Exiles | Met 8R-AWN 776 | -10/Exiles | Met EX-HEX 787 | -10/Exiles | Met EX-BIN 792 | -10/Exiles | Aligned with FarCom system 792 | -10/Exiles | Given EX-Vault access code 801 | -10/Exiles | Opened EX-Vault 804 | -10/Exiles | Found Chronowheel 813 | -10/Exiles | Warned to stay clear of 0b10 Research branches 824 | -10/Exiles | Met EX-DEC 837 | -10/Exiles | Discovered exit to Mines (range 11) 841 | -10/Exiles | Left Exiles lab with Chronowheel 841 | -10/Exiles | Entered Mines 847 | -9/Mines | Received a Mining Laser from a helpful Derelict 881 | -9/Mines | Learned Materials stockpile data 910 | -9/Mines | Build established: Scavenger-Mutant 923 | -9/Mines | Discovered new exit (range 10) 927 | -9/Mines | Identified exit to Materials 1012 | -9/Mines | Entered Materials 1012 | -8/Materials | Accompanied by 1 ally 1012 | -8/Materials | Evolved 4 slots: Propulsion x2, Utility x2 1012 | -8/Materials | Activated Chronowheel 1012 | -8/Materials | Spacetime reconverged on an earlier point 1152 | -8/Materials | Discovered new exit (range 11) 1163 | -8/Materials | Identified exit to Factory 1163 | -8/Materials | Entered Factory 1163 | -7/Factory | Evolved 2 slots: Power x1, Utility x1 1361 | -7/Factory | Fabricated Hyp. Gauss Rifle (x2) 1452 | -7/Factory | Repaired Lgt. Ion Engine 1483 | -7/Factory | Build established: Mutant 1577 | -7/Factory | Repaired Airjet 1837 | -7/Factory | Garrison activated, responded to threat 1854 | -7/Factory | Identified exit to Lower Caves 2201 | -7/Factory | Build established: Hacker-Mutant 2490 | -7/Factory | Repaired Airjet 2529 | -7/Factory | Repaired Airjet 2569 | -7/Factory | Repaired Airjet 2832 | -7/Factory | Sucked down chute 2832 | -7/Factory | Entered Waste 2850 | -7/Waste | Spotted C-40 Crusher 2852 | -7/Waste | Spotted C-40 Crusher 2853 | -7/Waste | Spotted C-40 Crusher 2856 | -7/Waste | Spotted C-40 Crusher 2856 | -7/Waste | Spotted C-40 Crusher 2869 | -7/Waste | Spotted C-40 Crusher 2874 | -7/Waste | Discovered new exit (range 12) 2886 | -7/Waste | Identified exit to Factory 2886 | -7/Waste | Entered Factory 2939 | -7/Factory | Repaired Broken Lgt. Deuterium Engine 2943 | -7/Factory | Discovered exit to Lower Caves (range 11) 2963 | -7/Factory | Entered Lower Caves 3013 | -7/Lower Caves | Encountered a Warlord checkpoint 3040 | -7/Lower Caves | Learned Factory garrison access intel 3092 | -7/Lower Caves | Spotted B-75 Beast 3365 | -7/Lower Caves | Discovered new exit (range 10) 3369 | -7/Lower Caves | Identified exit to Lower Caves 3370 | -7/Lower Caves | Entered another Lower Caves area 3394 | -7/Lower Caves | Discovered new exit (range 10) 3398 | -7/Lower Caves | Identified exit to Factory 3448 | -7/Lower Caves | Learned Factory garrison access intel 3475 | -7/Lower Caves | Attracted the attention of an 0b10 checkpoint 3715 | -7/Lower Caves | Entered Factory 3715 | -6/Factory | Evolved 2 slots: Propulsion x1, Weapon x1 3716 | -6/Factory | Loaded intel: 4 garrison access locations 3837 | -6/Factory | Identified exit to Lower Caves 3837 | -6/Factory | Identified exit to Extension 3841 | -6/Factory | Discovered new exit (range 6) 3842 | -6/Factory | Identified exit to DSF 3844 | -6/Factory | Identified exit to Factory 3902 | -6/Factory | Entered Extension 3925 | -6/Extension | Identified exit to Cetus 3942 | -6/Extension | Rescued a captive Derelict 4178 | -6/Extension | Rescued A7 4486 | -6/Extension | Repaired Imp. Treads 4780 | -6/Extension | Rescued a captive Derelict 5011 | -6/Extension | Rescued a captive Derelict 5175 | -6/Extension | Discovered exit to Factory (range 10) 5241 | -6/Extension | Entered Cetus 5241 | -6/Cetus | Accompanied by 13 allies (A7) 5246 | -6/Cetus | Acquired a Cetus Manufacturing Module code from A7 5264 | -6/Cetus | Spotted Cetus Guard 5264 | -6/Cetus | Spotted Cetus Guard 5267 | -6/Cetus | Destroyed Cetus Guard 5267 | -6/Cetus | Spotted Cetus Guard 5269 | -6/Cetus | Spotted Cetus Guard 5272 | -6/Cetus | Allies destroyed Cetus Guard 5282 | -6/Cetus | Allies destroyed Cetus Guard 5286 | -6/Cetus | Allies destroyed Cetus Guard 5415 | -6/Cetus | Started Cetus Manufacturing Module 5426 | -6/Cetus | Escorted A7 to Cetus Mainframe 5440 | -6/Cetus | Manufactured an Enhanced Grunt 5449 | -6/Cetus | Discovered new exit (range 16) 5465 | -6/Cetus | Manufactured an Enhanced Grunt 5490 | -6/Cetus | Manufactured an Enhanced Grunt 5515 | -6/Cetus | Manufactured an Enhanced Grunt 5540 | -6/Cetus | Manufactured an Enhanced Grunt 5548 | -6/Cetus | Build established: Commander-Skirmisher 5591 | -6/Cetus | Identified exit to Archives 5630 | -6/Cetus | Entered Archives 5630 | -6/Archives | Accompanied by 17 allies (A7) 5635 | -6/Archives | Received a hacking code to weaken MAIN.C 5688 | -6/Archives | Discovered exit to Factory (range 15) 5696 | -6/Archives | Unable to access archive contents 5709 | -6/Archives | Unable to access archive contents 5714 | -6/Archives | Discovered new exit (range 16) 5722 | -6/Archives | Unable to access archive contents 5722 | -6/Archives | Unable to access archive contents 5736 | -6/Archives | Unable to access archive contents 5768 | -6/Archives | Identified exit to Hub_04(d) 5801 | -6/Archives | Discovered exit to Hub_04(d) (range 13) 5971 | -6/Archives | Entered Hub_04(d) 5971 | -6/Hub_04(d) | Accompanied by 15 allies 6041 | -6/Hub_04(d) | Discovered exit to Factory (range 16) 6096 | -6/Hub_04(d) | Lost 9 allies 6149 | -6/Hub_04(d) | Found Prototype Device 6149 | -6/Hub_04(d) | Identified Exp. Thermal Shield 6352 | -6/Hub_04(d) | Build established: Scavenger-Skirmisher 6409 | -6/Hub_04(d) | Entered Factory 6409 | -5/Factory | Evolved 2 slots: Utility x2 6410 | -5/Factory | Loaded intel: 4 garrison access locations 6549 | -5/Factory | Repaired Quantum Reactor 7380 | -5/Factory | Identified exit to Upper Caves 7380 | -5/Factory | Identified exit to Factory 7609 | -5/Factory | First assault squad dispatched 7846 | -5/Factory | Lost 5 parts (2n1u2w) 7979 | -5/Factory | System corruption reached 10% 7999 | -5/Factory | Entered another Factory area 7999 | -4/Factory | Evolved 2 slots: Utility x2 8237 | -4/Factory | Lost 4 parts (1p1n2w) 8277 | -4/Factory | Build established: Scavenger-Mutant 8719 | -4/Factory | Central database locked down 8765 | -4/Factory | Lost 3 parts (1p1u1w) 8798 | -4/Factory | Identified exit to Upper Caves 9022 | -4/Factory | Build established: Scavenger-Skirmisher 9057 | -4/Factory | Fabricated Mic. Fission Core? 9210 | -4/Factory | Crushed by falling debris 9210 | -4/Factory | System corruption reached 10% 9327 | -4/Factory | Core integrity fell below 50% 9339 | -4/Factory | Core integrity fell below 20% 9360 | -4/Factory | Destroyed by H-71 Marshal with Heavy Mass Driver Last Messages --------------- 09337_ Slug penetrates Wall. 09337_ Knocked back. 09338_ System corrupted: Component data lost. 09338_ Slug penetrates Door. 09338_ T-07 Excavator destroyed. 09338_ H-77 Assassin misfires. 09338_ Slug penetrates Wall. 09339_ Wall collapses. 09339_ Hacking Suite destroyed. 09339_ U-05 Engineer builds a Wall. 09340_ Penetrated by Slug. 09340_ Slug penetrates Wall. 09341_ Penetrated by Slug. 09341_ Slug penetrates Wall. 09354_ System corrupted: Heat flow error (+225). 09359_ Connecting with Terminal... Feedback: System corruption (+1%). 09359_ ALERT: Suspicious activity at Terminal F009. Dispatching Investigation squad. 09360_ Penetrated by Slug. Map ----- +----------------------------------------------------+ | #????????????????????????????????????? | | """ """ #????????????????????????????????????? | | """ """ #????????????????????????????????????? | | """ """ #????????????????????????????????????? | | #????????????????????????????????????? | | #############????????????????????????????????????? | | ?????????????????????????????????????????????????? | | ???????????????????????????????????????????????? | | ?????????????????????????????????????????????? | | ?????????????????????????????????????????????? | | !! ?????????????????????????????????????????????? | | !! ?????????????????????????????????????????????? | | !! ?????????????????????????????????????????????? | | ?????????????????????????????????????????????? | | " ?????????????????????????????????????????????? | | " ?????????????????????????????????????????????? | | " ???#######???????????????????????????????????? | | ???# #???????????????????????????????????? | | ?#/##### #???????????????????????????????????? | | ?# ##############??????????????????????? | | ?# # #??????????????????????? | | ?# """" # """ #??????????????????????? | | ?# """" # """" "T" #??????????????????????? | | ?# """" # """" #??????????????????????? | | # # """" % #### ! ????????? | | + """" # """" | @/ H ????????? | | # """" + #### ????????? | | ?# """" # """" """" #??????????????????????? | | ?# # """" """" #??????????????????????? | | ?# """" # """" """" #??????????????????????? | | ## """" # """" """" #??????????????????????? | | %""" # #??????????????????????? | | ##############??????????????????????? | | %%"" ????????????????????????????????? | | """" ?????????????????????????????????? | | """" ?????????????????????????????????? | | ???????????????????????????????????? | | ???????????????????????????????????? | | ???????????????????????????????????? | | ##############???????????????????????????????????? | | ?????????????????????????????????????????????????? | | ?????????????????????????????????????????????????? | | ?????????????????????????????????????????????????? | | ?????????????????????????????????????????????????? | | ?????????????????????????????????????????????????? | | ?????????????????????????????????????????????????? | | ?????????????????????????????????????????????????? | | ?????????????????????????????????????????????????? | | ????????????????????????????????????????????????? | | ????????????????????????????????????????????????? | +----------------------------------------------------+ Best States ------------- Heat Dissipation 100 Energy Generation 43 Energy Capacity 950 Matter Stores 300 Matter Capacity 300 Sight Range 18 Terrain Scan Density 10 Additional Mass Support 6 Armor Coverage 675 Resistance: TH 30 Evasion (%) 63 Target Analysis 5 Recoil Reduction 4 Offensive Hacking 24 Defensive Hacking 10 Item Schematics ----------------- Airjet | -6/Factory | Scanalyzed Mic. Fission Core | -6/Extension | Hacked Robot Schematics ------------------ None Fabricated ------------ Hyp. Gauss Rifle | x2 | -7/Factory | Preloaded Mic. Fission Core | x2 | -4/Factory Repaired ---------- Lgt. Ion Engine | 27% | -7/Factory Airjet | 62% | -7/Factory Airjet | 22% | -7/Factory Airjet | 45% | -7/Factory Airjet | 65% | -7/Factory Lgt. Deuterium Engine | 28% | -7/Factory | Broken Imp. Treads | 20% | -6/Extension Quantum Reactor | 1% | -5/Factory Studied --------- Airjet | -6/Factory | Hacked Coil Gun | -6/Factory | Hacked Mic. Nuclear Core | -6/Factory | Hacked Lgt. Nuclear Core | -6/Factory | Hacked Plasma Cannon | -6/Factory | Hacked Hyp. Gauss Rifle | -6/Factory | Hacked Lgt. Deuterium Engine | -6/Factory | Hacked Matter Neutralizer | -4/Factory | Hacked Alien Tech Used ----------------- None Achievements -------------- All Kinds Of Bad News It Was An Accident, I Swear Main Advantage Myspace Part-time Excavator Prison Break Project G-00 Prolific Hacker Spacetime Is Relative Challenges ------------ None Game ------ Seed DeepAssembledGreatsword Manual? 0 Play Time 02:25:56 Cumulative 48.0 hours Start 2026.04.04 @ 00:39:36 End 2026.04.04 @ 03:18:17 Sessions 1 Manual Loads 0 Difficulty Rogue Special Mode None Game No. 39 Rogue 39 Adventurer 0 Explorer 0 Win Type - Total 1 Types 1/0/0/0/0/0/0/0/0/0 Lore% 23 Gallery% 37 Achievement% 30 Wizard Run 0 Options --------- Layout 1 ASCII 0 Keyboard 0 Movement Mouse Keybinds 0 Fullscreen 1 Font 24/Smallcaps Map View 50x35 Zoom Use 0% Tactical HUD 1 Map Filters NONE Filters NONE Steam 1 RUN: d2f5517d-8b41-4565-8f11-eadf56919bdb